[Event "WYCC 2018 G18"]
[Site "Halkidiki"]
[Date "2018.10.21"]
[Round "2"]
[White "Abeysinghe, H M H Janandani"]
[Black "Gillis Onieva, Celia"]
[Result "1/2-1/2"]
[ECO "C14"]
[WhiteElo "1698"]
[BlackElo "1892"]
[Annotator "NA"]
[PlyCount "185"]
[EventDate "2018.10.20"]
[EventType "swiss"]
[EventCountry "GRE"]
[SourceTitle "playchess.com"]
[Source "ChessBase"]
[SourceQuality "1"]
[TimeControl "40/5400+30:1800+30"]

1. e4 {[%emt 0:00:00]} e6 {[%emt 0:00:00]} 2. d4 {[%emt 0:00:05]} d5 {[%emt 0:00:00]} 3. Nc3 {[%emt 0:00:04]} Nf6 {[%emt 0:00:00]} 4. Bg5 {[%emt 0:00:20]} Be7 {[%emt 0:00:08]} 5. e5 {[%emt 0:00:17]} Nfd7 {[%emt 0:00:07]} 6. Bxe7 {[%emt 0:00:39]} Qxe7 {[%emt 0:00:06]} 7. f4 {[%emt 0:00:31]} a6 {[%emt 0:01:11]} 8. Nf3 {[%emt 0:00:29]} c5 {[%emt 0:02:05]} 9. dxc5 {[%emt 0:01:29]} Nc6 {[%emt 0:03:08]} 10. Qd2 {[%emt 0:01:08]} Nxc5 {[%emt 0:03:09]} 11. Bd3 {[%emt 0:00:42]} O-O {[%emt 0:04:19] C14: French: Classical System: 4 Bg5 Be7 main line} 12. a3 {[%emt 0:01:48]} (12. O-O f5 13. exf6 Qxf6 14. g3 Bd7 15. Rae1 Rad8 16. Qf2 b6 17. Ng5 Nxd3 18. cxd3 {½-½ (117) Warakomski,T (2505)-Socko,B (2588) Poland 2018}) 12... b5 {[%emt 0:01:48]} 13. O-O {[%emt 0:02:17]} Bb7 {[%emt 0:04:32]} 14. Rfe1 $146 {[%emt 0:01:19]} ({Predecessor:} 14. b4 Nxd3 15. cxd3 a5 16. Nxb5 axb4 17. axb4 Qxb4 18. Nd6 Qxd2 19. Nxd2 Ba6 20. Rfc1 {½-½ (30) Gramstad,R (2200)-Kozlov,A (2288) ICCF email 2006}) 14... f6 {[%emt 0:10:24]} 15. f5 {[%emt 0:08:56]} Nxd3 {[%emt 0:16:02]} 16. Qxd3 {[%emt 0:01:18]} fxe5 {[%emt 0:06:03]} 17. Nxe5 {[%emt 0:04:24]} Qc5+ {[%emt 0:00:59]} 18. Kh1 {[%emt 0:03:51]} Rxf5 {[%emt 0:00:22]} 19. Nf3 {[%emt 0:02:26]} b4 {[%emt 0:14:44]} 20. Rxe6 {[%emt 0:18:09]} Rxf3 {[%emt 0:02:22]} 21. gxf3 {[%emt 0:01:05]} bxc3 {[%emt 0:03:59]} 22. bxc3 {[%emt 0:00:24]} d4 {[%emt 0:09:05]} 23. Rb1 {[%emt 0:09:08]} Ne5 {[%emt 0:10:58]} 24. Rxe5 {[%emt 0:02:43]} Qxe5 {[%emt 0:00:08]} 25. Rxb7 {[%emt 0:01:07]} dxc3 {[%emt 0:00:50]} 26. Qc4+ {[%emt 0:01:06]} Kh8 {[%emt 0:00:04]} 27. Qe4 {[%emt 0:10:45]} Qg5 {[%emt 0:02:50]} 28. Re7 {[%emt 0:08:07]} Qc1+ {[%emt 0:01:32]} 29. Qe1 {[%emt 0:02:51]} Qxe1+ {[%emt 0:00:04]} 30. Rxe1 {[%emt 0:00:06]} g6 {[%emt 0:01:49]} 31. Re3 {[%emt 0:00:25]} Rc8 {[%emt 0:00:29]} 32. Kg2 {[%emt 0:00:05]} Kg7 {[%emt 0:00:13]} 33. Rd3 {[%emt 0:00:59]} Kf6 {[%emt 0:00:46]} 34. h4 {[%emt 0:02:19]} Kf5 {[%emt 0:00:30]} 35. Kf2 {[%emt 0:00:43]} Kf4 {[%emt 0:01:11]} 36. Rd4+ {[%emt 0:01:00]} Ke5 {[%emt 0:00:14]} 37. Ke3 {[%emt 0:00:43]} h5 {[%emt 0:01:24]} 38. f4+ {[%emt 0:03:39]} Kf5 {[%emt 0:00:07]} 39. Rd5+ {[%emt 0:00:07]} Kf6 {[%emt 0:00:58]} 40. Rd6+ {[%emt 0:00:00]} Kf5 {[%emt 0:00:00]} 41. Rxa6 {[%emt 0:01:49]} Rc4 {[%emt 0:04:24]} 42. Ra5+ {[%emt 0:01:31]} Ke6 {[%emt 0:05:38]} 43. Re5+ {[%emt 0:01:21]} Kf6 {[%emt 0:00:04]} 44. Re4 {[%emt 0:00:07]} Rc6 {[%emt 0:01:27]} 45. a4 {[%emt 0:01:59]} Ra6 {[%emt 0:02:05]} 46. Rc4 {[%emt 0:00:49]} Re6+ $2 {[%emt 0:10:05]} (46... Kf5 {keeps fighting.} 47. Kf3 (47. Rxc3 Rxa4 48. Rc5+ Kf6 $16) 47... Ra5) 47. Kd3 {[%emt 0:01:48]} Kf5 {[%emt 0:00:06]} 48. Kxc3 {[%emt 0:00:08]} Kg4 {[%emt 0:00:56]} 49. a5 {[%emt 0:00:30]} Re3+ {[%emt 0:04:13]} 50. Kb4 {[%emt 0:00:51]} Kxh4 {[%emt 0:00:06]} 51. f5+ {[%emt 0:00:09]} Kg3 {[%emt 0:00:16]} 52. fxg6 {[%emt 0:00:57]} Re8 {[%emt 0:01:06]} 53. Rc5 {[%emt 0:03:13]} h4 {[%emt 0:00:15]} 54. Rg5+ {[%emt 0:01:17]} Kf2 {[%emt 0:03:21]} 55. g7 {[%emt 0:00:27]} Rg8 {[%emt 0:00:08]} 56. Rh5 {[%emt 0:02:21]} Kg3 {[%emt 0:01:17]} 57. Rh7 {[%emt 0:00:33]} h3 {[%emt 0:00:10]} 58. a6 {[%emt 0:00:25]} h2 {[%emt 0:00:11]} 59. a7 {[%emt 0:00:47]} Kg2 {[%emt 0:00:32]} 60. c4 {[%emt 0:00:39]} h1=Q {[%emt 0:01:12]} 61. Rxh1 {[%emt 0:00:05]} Kxh1 {[%emt 0:00:04]} 62. Kb5 {[%emt 0:00:22]} (62. c5 $142 Kh2 63. Kb5) 62... Kg2 {[%emt 0:00:11]} 63. Kb6 {[%emt 0:00:03]} Kf3 {[%emt 0:00:08]} 64. c5 {[%emt 0:00:03]} Ke4 {[%emt 0:00:21]} 65. c6 {[%emt 0:00:07]} Kd5 {[%emt 0:00:32]} 66. Kb7 {[%emt 0:00:17]} Rxg7+ {[%emt 0:00:22]} 67. c7 {[%emt 0:02:20]} Kd6 {[%emt 0:00:10]} 68. a8=Q {[%emt 0:00:12]} Rxc7+ {[%emt 0:00:04]} 69. Kb6 {[%emt 0:00:06]} Rf7 {[%emt 0:02:14]} 70. Qc6+ {[%emt 0:00:45]} Ke7 {[%emt 0:00:06]} 71. Kc5 $18 {[%emt 0:00:39]} Rf5+ {[%emt 0:00:31]} 72. Kd4 {[%emt 0:00:16]} Rf6 {[%emt 0:01:01]} 73. Qc5+ {[%emt 0:00:33]} Ke6 {[%emt 0:00:59]} 74. Qd5+ {[%emt 0:00:35]} Ke7 {[%emt 0:00:06]} 75. Ke5 {[%emt 0:00:22]} Rg6 {[%emt 0:00:36]} 76. Qb7+ {[%emt 0:00:17]} Ke8 {[%emt 0:01:33]} 77. Kf5 {[%emt 0:01:04]} Rd6 {[%emt 0:00:05]} 78. Ke5 {[%emt 0:00:44]} Rg6 {[%emt 0:00:05]} 79. Qh7 {[%emt 0:00:25]} Rb6 {[%emt 0:01:17]} 80. Qe4 {[%emt 0:02:31]} Ke7 {[%emt 0:01:27]} 81. Qd5 {[%emt 0:00:41]} Rg6 {[%emt 0:00:35]} 82. Qb7+ {[%emt 0:00:12]} Ke8 {[%emt 0:00:21]} 83. Qc8+ {[%emt 0:00:24]} Ke7 {[%emt 0:00:25]} 84. Qc7+ {[%emt 0:00:14]} Ke8 {[%emt 0:00:16]} 85. Kf5 {[%emt 0:00:06]} Rh6 {[%emt 0:01:11]} 86. Qf4 {[%emt 0:00:31]} Rc6 {[%emt 0:00:39]} 87. Qa4 {[%emt 0:00:43]} Kd7 {[%emt 0:00:12]} 88. Ke5 {[%emt 0:00:10]} Kc7 {[%emt 0:00:10]} 89. Qa7+ {[%emt 0:00:10]} Kd8 {[%emt 0:00:17]} 90. Kd5 {[%emt 0:00:21]} Rg6 {[%emt 0:00:59]} 91. Qb8+ {[%emt 0:00:47]} Kd7 {[%emt 0:00:18]} 92. Qb7+ {[%emt 0:00:10]} Ke8 {[%emt 0:00:36]} 93. Ke5 {[%emt 0:00:25]} 1/2-1/2

[Event "WYCC 2018 G18"]
[Site "Halkidiki"]
[Date "2018.10.21"]
[Round "2"]
[White "Ni Mhuireagain, Eibhia"]
[Black "Nistor, Valentina"]
[Result "1/2-1/2"]
[ECO "C54"]
[WhiteElo "1655"]
[BlackElo "1881"]
[Annotator "NA"]
[PlyCount "74"]
[EventDate "2018.10.20"]
[EventType "swiss"]
[EventCountry "GRE"]
[SourceTitle "playchess.com"]
[Source "ChessBase"]
[SourceQuality "1"]
[TimeControl "40/5400+30:1800+30"]

1. e4 {[%emt 0:00:00]} e5 {[%emt 0:00:00]} 2. Nf3 {[%emt 0:00:00]} Nc6 {[%emt 0:00:00]} 3. Bc4 {[%emt 0:00:00]} Bc5 {[%emt 0:00:00]} 4. c3 {[%emt 0:00:00]} Nf6 {[%emt 0:00:19]} 5. d3 {[%emt 0:00:08]} d6 {[%emt 0:00:17]} 6. b4 {[%emt 0:01:22]} Bb6 {[%emt 0:00:45]} 7. a4 {[%emt 0:01:44]} a5 {[%emt 0:03:35]} 8. b5 {[%emt 0:00:49]} Ne7 {[%emt 0:00:54]} 9. O-O {[%emt 0:17:41] LiveBook: 96 Games} O-O {[%emt 0:01:47]} 10. Qb3 {[%emt 0:07:47]} h6 {[%emt 0:05:53]} 11. Nbd2 {[%emt 0:04:54]} Ng6 {[%emt 0:04:26]} 12. d4 $11 {[%emt 0:06:10]} Qe7 {[%emt 0:13:40]} 13. Re1 {[%emt 0:03:40]} Bg4 {[%emt 0:03:45]} 14. Ba3 {[%emt 0:09:51]} Nd7 {[%emt 0:14:42]} 15. h3 {[%emt 0:03:05]} Bxf3 {[%emt 0:00:31]} 16. Nxf3 {[%emt 0:00:08]} Nh4 {[%emt 0:02:53]} 17. Nxh4 {[%emt 0:04:45]} Qxh4 {[%emt 0:01:25]} 18. Rad1 {[%emt 0:00:35]} Qf6 {[%emt 0:06:49]} 19. Bb2 {[%emt 0:05:30]} Kh8 {[%emt 0:07:40]} 20. Bd5 {[%emt 0:02:42]} Rab8 {[%emt 0:01:17]} 21. Qc2 {[%emt 0:08:07]} Qg6 {[%emt 0:05:39]} 22. Qe2 {[%emt 0:04:31]} Nf6 {[%emt 0:03:26]} 23. dxe5 {[%emt 0:04:07]} dxe5 {[%emt 0:00:30]} 24. c4 {[%emt 0:03:29]} Bc5 {[%emt 0:01:58]} 25. Bxe5 {[%emt 0:01:31]} Bb4 {[%emt 0:06:30]} 26. Rf1 {[%emt 0:00:26]} Ne8 {[%emt 0:02:54]} 27. Qf3 {[%emt 0:01:06]} Nd6 {[%emt 0:03:27]} 28. Rc1 {[%emt 0:02:54]} Bc5 {[%emt 0:02:23]} 29. Bc3 {[%emt 0:01:06]} b6 {[%emt 0:02:18]} 30. Rfd1 {[%emt 0:02:33]} f5 {[%emt 0:02:20]} 31. e5 {[%emt 0:01:09]} Ne4 {[%emt 0:00:14]} 32. Bd4 {[%emt 0:01:03]} Rbe8 {[%emt 0:01:13]} 33. e6 {[%emt 0:01:26]} Ng5 {[%emt 0:00:51]} 34. Qg3 {[%emt 0:00:35]} Bd6 {[%emt 0:01:02]} 35. Be5 {[%emt 0:01:04]} f4 {[%emt 0:00:44]} 36. Qc3 {[%emt 0:00:57]} Nxh3+ {[%emt 0:00:47]} 37. Qxh3 {[%emt 0:00:33]} Bxe5 {[%emt 0:00:04]} 1/2-1/2

[Event "WYCC 2018 G18"]
[Site "Halkidiki"]
[Date "2018.10.21"]
[Round "3"]
[White "Garcia Martin, Marta"]
[Black "Avetisyan, Mariam"]
[Result "1-0"]
[ECO "C50"]
[WhiteElo "2329"]
[BlackElo "2049"]
[Annotator "NA"]
[PlyCount "79"]
[EventDate "2018.10.20"]
[EventType "swiss"]
[EventCountry "GRE"]
[SourceTitle "playchess.com"]
[Source "ChessBase"]
[SourceQuality "1"]
[TimeControl "40/5400+30:1800+30"]

1. e4 {[%emt 0:00:00]} e5 {[%emt 0:00:00]} 2. Nf3 {[%emt 0:00:00]} Nc6 {[%emt 0:00:00]} 3. Bc4 {[%emt 0:00:00]} Bc5 {[%emt 0:00:00]} 4. O-O {[%emt 0:00:14]} Nf6 {[%emt 0:00:54]} 5. d3 {[%emt 0:00:16]} d6 {[%emt 0:00:21]} 6. c3 {[%emt 0:00:29]} a5 {[%emt 0:00:29]} 7. a4 {[%emt 0:01:07]} O-O {[%emt 0:03:54]} 8. Bg5 {[%emt 0:03:16]} h6 {[%emt 0:06:43]} 9. Bh4 {[%emt 0:00:05]} Be6 {[%emt 0:05:15]} 10. Nbd2 $11 {[%emt 0:03:55] LiveBook: 4 Games} Qe7 {[%emt 0:04:11]} 11. Re1 {[%emt 0:09:12]} Ba7 {[%emt 0:07:59]} 12. Bb5 {[%emt 0:08:00]} Rab8 {[%emt 0:31:36]} 13. Nf1 {[%emt 0:02:41]} Bg4 {[%emt 0:20:27]} 14. h3 {[%emt 0:05:34]} Bh5 {[%emt 0:01:40]} 15. Ng3 {[%emt 0:15:06]} Bg6 {[%emt 0:02:12]} 16. Nh2 {[%emt 0:04:33]} h5 {[%emt 0:09:40]} 17. Qf3 {[%emt 0:07:06]} Nd8 {[%emt 0:01:35]} 18. Bc4 {[%emt 0:04:17]} Ne6 {[%emt 0:00:47]} 19. Nf5 {[%emt 0:01:21]} Qd8 {[%emt 0:00:35]} 20. Nf1 {[%emt 0:01:43]} c6 {[%emt 0:01:01]} 21. N1g3 {[%emt 0:06:16]} Nf4 {[%emt 0:00:31]} 22. d4 {[%emt 0:01:03]} b5 {[%emt 0:00:28]} 23. axb5 {[%emt 0:02:26]} cxb5 {[%emt 0:00:01]} 24. Ba2 {[%emt 0:00:21]} b4 {[%emt 0:00:09]} 25. Nf1 {[%emt 0:08:43]} bxc3 {[%emt 0:00:24]} 26. bxc3 {[%emt 0:00:03]} Rb2 {[%emt 0:00:11]} 27. N1e3 {[%emt 0:00:38]} Bxf5 {[%emt 0:01:29]} 28. Nxf5 {[%emt 0:00:41]} Ng6 {[%emt 0:00:24]} 29. Bg5 {[%emt 0:01:57]} a4 {[%emt 0:00:40]} 30. Nh6+ {[%emt 0:02:52]} gxh6 {[%emt 0:00:38]} 31. Bxf6 {[%emt 0:00:06]} Qb6 {[%emt 0:00:25]} 32. Bd5 {[%emt 0:01:32]} Kh7 {[%emt 0:00:37]} 33. Qxh5 {[%emt 0:01:09]} Nf4 {[%emt 0:00:31]} 34. Qf5+ {[%emt 0:00:16]} Ng6 {[%emt 0:00:05]} 35. h4 {[%emt 0:00:46]} exd4 {[%emt 0:00:50]} 36. h5 {[%emt 0:02:15]} Qb5 {[%emt 0:00:30]} 37. cxd4 {[%emt 0:01:17]} Bb6 {[%emt 0:00:26]} 38. hxg6+ {[%emt 0:02:46]} fxg6 {[%emt 0:00:05]} 39. Qe6 {[%emt 0:00:04]} Rxf2 {[%emt 0:00:24]} 40. Qe7+ {[%emt 0:00:00]} 1-0

[Event "WYCC 2018 G18"]
[Site "Halkidiki"]
[Date "2018.10.21"]
[Round "3"]
[White "Obolentseva, Alexandra"]
[Black "Muratova, Saltanat"]
[Result "1-0"]
[ECO "E97"]
[WhiteElo "2298"]
[BlackElo "1859"]
[Annotator "NA"]
[PlyCount "81"]
[EventDate "2018.10.20"]
[EventType "swiss"]
[EventCountry "GRE"]
[SourceTitle "playchess.com"]
[Source "ChessBase"]
[SourceQuality "1"]
[TimeControl "40/5400+30:1800+30"]

1. d4 {[%emt 0:00:00]} Nf6 {[%emt 0:00:00]} 2. c4 {[%emt 0:00:00]} g6 {[%emt 0:00:00]} 3. Nc3 {[%emt 0:00:00]} Bg7 {[%emt 0:00:00]} 4. e4 {[%emt 0:00:00]} d6 {[%emt 0:00:03]} 5. Nf3 {[%emt 0:00:01]} O-O {[%emt 0:00:10]} 6. Be2 {[%emt 0:00:05]} e5 {[%emt 0:00:07]} 7. O-O {[%emt 0:00:09]} Nc6 {[%emt 0:00:10]} 8. d5 {[%emt 0:00:07]} Ne7 {[%emt 0:00:09]} 9. b4 {[%emt 0:00:08]} Ne8 {[%emt 0:02:11]} 10. c5 {[%emt 0:00:24]} f5 {[%emt 0:00:19]} 11. Nd2 {[%emt 0:02:54]} Nf6 {[%emt 0:04:08]} 12. Ba3 {[%emt 0:01:05]} Bh6 {[%emt 0:07:36]} 13. Bf3 {[%emt 0:03:52]} f4 {[%emt 0:03:28]} 14. b5 {[%emt 0:01:55]} g5 {[%emt 0:01:44]} 15. h3 {[%emt 0:01:01]} Rf7 {[%emt 0:05:07]} 16. Nc4 {[%emt 0:00:54]} Ne8 {[%emt 0:01:07]} (16... Bf8 $11) 17. cxd6 {[%emt 0:10:40]} cxd6 {[%emt 0:00:07]} 18. b6 $14 {[%emt 0:00:43]} a6 {[%emt 0:15:21]} 19. Na4 {[%emt 0:06:52]} Ng6 {[%emt 0:01:30]} 20. Rc1 {[%emt 0:01:24]} g4 {[%emt 0:06:22]} 21. hxg4 {[%emt 0:04:30]} Nh4 {[%emt 0:05:35]} 22. Nc5 {[%emt 0:14:05]} Qf6 {[%emt 0:10:57]} 23. Ne6 {[%emt 0:03:16]} Bxe6 {[%emt 0:04:04]} 24. dxe6 {[%emt 0:00:08]} Qxe6 {[%emt 0:00:04]} 25. Qb3 {[%emt 0:02:40]} Bf8 {[%emt 0:01:55]} 26. Rfd1 {[%emt 0:01:38]} Qg6 {[%emt 0:01:34]} 27. Kf1 {[%emt 0:01:05]} Be7 {[%emt 0:10:28]} 28. Na5 {[%emt 0:03:05]} Bf8 {[%emt 0:02:39]} 29. Nxb7 {[%emt 0:00:48]} Nxf3 {[%emt 0:02:22]} 30. gxf3 {[%emt 0:00:09]} d5 {[%emt 0:01:17]} 31. Bxf8 {[%emt 0:00:56]} Kxf8 {[%emt 0:00:09]} 32. Nc5 {[%emt 0:01:53]} d4 {[%emt 0:02:20]} 33. Ne6+ {[%emt 0:01:56]} Kg8 {[%emt 0:01:29]} 34. b7 {[%emt 0:00:06]} Rb8 {[%emt 0:00:04]} 35. Nd8 {[%emt 0:00:06]} Nd6 {[%emt 0:00:52]} 36. Rc7 {[%emt 0:01:47]} Rxd8 {[%emt 0:01:36]} 37. b8=Q {[%emt 0:00:06]} Rxb8 {[%emt 0:00:09]} 38. Qxb8+ {[%emt 0:00:06]} Kg7 {[%emt 0:00:20]} 39. Rc6 {[%emt 0:00:10]} Rf6 {[%emt 0:00:43]} 40. Rxa6 {[%emt 0:00:00]} Qh6 {[%emt 0:00:00]} 41. g5 {[%emt 0:01:36]} 1-0

[Event "WYCC 2018 G18"]
[Site "Halkidiki"]
[Date "2018.10.21"]
[Round "3"]
[White "Sliwicka, Alicja"]
[Black "Hamedi Nia, Vesal"]
[Result "1/2-1/2"]
[ECO "B33"]
[WhiteElo "2264"]
[BlackElo "1987"]
[Annotator "NA"]
[PlyCount "65"]
[EventDate "2018.10.20"]
[EventType "swiss"]
[EventCountry "GRE"]
[SourceTitle "playchess.com"]
[Source "ChessBase"]
[SourceQuality "1"]
[TimeControl "40/5400+30:1800+30"]

1. e4 {[%emt 0:00:00]} c5 {[%emt 0:02:26]} 2. Nf3 {[%emt 0:00:00]} Nc6 {[%emt 0:05:09]} 3. d4 {[%emt 0:00:44]} cxd4 {[%emt 0:00:18]} 4. Nxd4 {[%emt 0:00:08]} Nf6 {[%emt 0:00:26]} 5. Nc3 {[%emt 0:00:41]} e5 {[%emt 0:00:55]} 6. Ndb5 {[%emt 0:01:11]} d6 {[%emt 0:00:11]} 7. Bg5 {[%emt 0:01:37]} a6 {[%emt 0:00:24]} 8. Na3 {[%emt 0:00:11]} b5 {[%emt 0:00:07]} 9. Nd5 {[%emt 0:00:49]} Be7 {[%emt 0:00:10]} 10. Bxf6 {[%emt 0:00:29]} Bxf6 {[%emt 0:00:10]} 11. c4 {[%emt 0:00:49]} b4 {[%emt 0:00:06]} 12. Nc2 {[%emt 0:00:20]} O-O {[%emt 0:00:27]} 13. g3 {[%emt 0:00:50]} Bg5 {[%emt 0:05:17]} 14. h4 {[%emt 0:00:14]} Bh6 {[%emt 0:00:04]} 15. Bh3 {[%emt 0:00:23]} Bb7 {[%emt 0:01:30]} 16. O-O {[%emt 0:06:08]} a5 {[%emt 0:02:12]} 17. Qd3 {[%emt 0:04:01]} Ne7 {[%emt 0:05:48]} 18. Nxe7+ {[%emt 0:08:43]} Qxe7 {[%emt 0:00:06]} 19. Ne3 {[%emt 0:01:38]} Bxe3 {[%emt 0:01:10]} 20. Qxe3 {[%emt 0:00:16]} Qc7 {[%emt 0:03:43]} 21. Rac1 {[%emt 0:04:49]} Qc6 {[%emt 0:06:47]} 22. c5 {[%emt 0:14:51]} dxc5 {[%emt 0:18:25]} 23. Rxc5 {[%emt 0:00:41]} Qxe4 {[%emt 0:00:07]} 24. Qxe4 {[%emt 0:00:42]} Bxe4 {[%emt 0:00:04]} 25. Rxe5 {[%emt 0:00:16]} Rfe8 {[%emt 0:00:17]} 26. Rc5 {[%emt 0:03:15]} g6 {[%emt 0:06:42]} 27. Rfc1 {[%emt 0:03:50]} h5 {[%emt 0:04:42]} 28. Rb5 {[%emt 0:11:06]} Bf3 {[%emt 0:04:59]} 29. a3 {[%emt 0:05:41]} bxa3 {[%emt 0:02:53]} 30. bxa3 {[%emt 0:00:09]} Kg7 {[%emt 0:04:00]} 31. Bg2 {[%emt 0:01:07]} Bxg2 {[%emt 0:00:08]} 32. Kxg2 {[%emt 0:00:04]} Re4 {[%emt 0:01:19]} 33. Rc3 {[%emt 0:05:05]} 1/2-1/2

[Event "WYCC 2018 G18"]
[Site "Halkidiki"]
[Date "2018.10.21"]
[Round "3"]
[White "Kiolbasa, Oliwia"]
[Black "Tejaswini, Sagar"]
[Result "1-0"]
[ECO "C92"]
[WhiteElo "2254"]
[BlackElo "2139"]
[Annotator "NA"]
[PlyCount "101"]
[EventDate "2018.10.20"]
[EventType "swiss"]
[EventCountry "GRE"]
[SourceTitle "playchess.com"]
[Source "ChessBase"]
[SourceQuality "1"]
[TimeControl "40/5400+30:1800+30"]

1. e4 {[%emt 0:00:00]} e5 {[%emt 0:00:00]} 2. Nf3 {[%emt 0:00:00]} Nc6 {[%emt 0:00:00]} 3. Bb5 {[%emt 0:00:00]} a6 {[%emt 0:00:00]} 4. Ba4 {[%emt 0:00:00]} Nf6 {[%emt 0:00:00]} 5. O-O {[%emt 0:00:08]} Be7 {[%emt 0:00:00]} 6. Re1 {[%emt 0:00:14]} b5 {[%emt 0:00:00]} 7. Bb3 {[%emt 0:00:07]} d6 {[%emt 0:00:39]} 8. c3 {[%emt 0:00:08]} O-O {[%emt 0:00:06]} 9. h3 {[%emt 0:00:07]} Bb7 {[%emt 0:00:25]} 10. d4 {[%emt 0:00:24]} Nd7 {[%emt 0:00:41]} 11. a4 {[%emt 0:00:31]} exd4 {[%emt 0:04:34]} 12. cxd4 {[%emt 0:01:26]} Na5 {[%emt 0:01:48]} 13. Bc2 {[%emt 0:03:16]} Bf6 {[%emt 0:02:29]} 14. axb5 {[%emt 0:07:02]} axb5 {[%emt 0:00:16]} 15. Qd3 {[%emt 0:04:08]} g6 {[%emt 0:07:32]} 16. Qxb5 {[%emt 0:00:54]} c6 {[%emt 0:01:29]} 17. Qd3 {[%emt 0:03:35]} c5 {[%emt 0:07:39]} 18. Bf4 {[%emt 0:12:11]} c4 {[%emt 0:06:11]} 19. Qd1 {[%emt 0:03:37]} Qb6 {[%emt 0:02:26]} 20. Nc3 {[%emt 0:00:25]} Rfe8 {[%emt 0:14:07]} 21. Ba4 {[%emt 0:05:42]} Bc6 {[%emt 0:03:05]} 22. Bxc6 {[%emt 0:02:24]} Qxc6 {[%emt 0:06:08]} 23. Nd5 {[%emt 0:04:57]} Bd8 {[%emt 0:00:48]} 24. Qa4 {[%emt 0:03:13]} Rc8 {[%emt 0:07:38]} 25. Qxc6 {[%emt 0:05:20]} Rxc6 {[%emt 0:00:29]} 26. Re3 {[%emt 0:00:43]} Kg7 {[%emt 0:02:16]} 27. Nd2 {[%emt 0:05:14]} h6 {[%emt 0:06:47]} 28. Rc3 {[%emt 0:02:30]} g5 {[%emt 0:01:40]} 29. Bg3 {[%emt 0:02:17]} Nf8 {[%emt 0:01:15]} 30. Ne3 {[%emt 0:03:05]} Kg6 {[%emt 0:02:59]} 31. d5 {[%emt 0:04:26]} Rc8 {[%emt 0:02:51]} 32. Bxd6 {[%emt 0:01:43]} Nd7 {[%emt 0:00:52]} 33. Bb4 {[%emt 0:01:10]} Bf6 {[%emt 0:01:50]} 34. Rxa5 {[%emt 0:03:53]} Bxc3 {[%emt 0:00:09]} 35. Bxc3 {[%emt 0:00:09]} Ra8 {[%emt 0:03:18]} 36. Rxa8 {[%emt 0:02:52]} Rxa8 {[%emt 0:00:02]} 37. Ndxc4 {[%emt 0:00:10]} f6 {[%emt 0:00:46]} 38. e5 {[%emt 0:01:11]} fxe5 {[%emt 0:00:17]} 39. Nxe5+ {[%emt 0:00:06]} Nxe5 {[%emt 0:00:04]} 40. Bxe5 {[%emt 0:00:00]} Ra1+ {[%emt 0:00:00]} 41. Kh2 {[%emt 0:03:47]} Ra5 {[%emt 0:01:02]} 42. Kg3 {[%emt 0:00:20]} Rb5 {[%emt 0:00:13]} 43. Kf3 {[%emt 0:01:22]} Rb4 {[%emt 0:00:24]} 44. Bc3 {[%emt 0:00:32]} Rf4+ {[%emt 0:00:29]} 45. Ke2 {[%emt 0:00:07]} Rf7 {[%emt 0:00:06]} 46. Ng4 {[%emt 0:01:29]} Re7+ {[%emt 0:00:11]} 47. Ne5+ {[%emt 0:01:47]} Kf6 {[%emt 0:00:21]} 48. d6 {[%emt 0:00:09]} Rb7 {[%emt 0:00:44]} 49. d7 {[%emt 0:00:50]} Ke7 {[%emt 0:00:01]} 50. Ba5 {[%emt 0:00:26]} Rxb2+ {[%emt 0:00:21]} 51. Ke3 {[%emt 0:00:16]} 1-0

[Event "WYCC 2018 G18"]
[Site "Halkidiki"]
[Date "2018.10.21"]
[Round "3"]
[White "Antolak, Julia"]
[Black "Tarini Goyal"]
[Result "1/2-1/2"]
[ECO "B18"]
[WhiteElo "2240"]
[BlackElo "2026"]
[Annotator "NA"]
[PlyCount "49"]
[EventDate "2018.10.20"]
[EventType "swiss"]
[EventCountry "GRE"]
[SourceTitle "playchess.com"]
[Source "ChessBase"]
[SourceQuality "1"]
[TimeControl "40/5400+30:1800+30"]

1. e4 {[%emt 0:00:00]} c6 {[%emt 0:00:23]} 2. d4 {[%emt 0:00:00]} d5 {[%emt 0:00:05]} 3. Nc3 {[%emt 0:00:00]} dxe4 {[%emt 0:00:05]} 4. Nxe4 {[%emt 0:00:00]} Bf5 {[%emt 0:00:21]} 5. Ng3 {[%emt 0:00:00]} Bg6 {[%emt 0:00:09]} 6. h4 {[%emt 0:00:03]} h6 {[%emt 0:00:05]} 7. Nf3 {[%emt 0:00:07]} e6 {[%emt 0:00:43]} 8. h5 {[%emt 0:00:23]} Bh7 {[%emt 0:00:07]} 9. Bd3 {[%emt 0:00:06]} Bxd3 {[%emt 0:00:07]} 10. Qxd3 {[%emt 0:00:04]} Nf6 {[%emt 0:00:08]} 11. Bd2 {[%emt 0:00:07]} Be7 {[%emt 0:00:12]} 12. O-O-O {[%emt 0:00:20]} c5 {[%emt 0:00:49]} 13. Ne4 {[%emt 0:01:26]} cxd4 {[%emt 0:00:21]} 14. Nxd4 {[%emt 0:05:01]} Nbd7 {[%emt 0:01:33]} 15. Kb1 {[%emt 0:05:02]} a6 {[%emt 0:01:25]} 16. Bc3 {[%emt 0:20:54]} O-O {[%emt 0:19:28]} 17. g4 {[%emt 0:11:55]} Qb6 {[%emt 0:26:35]} 18. f4 {[%emt 0:16:47]} Nxe4 {[%emt 0:02:40]} 19. Qxe4 {[%emt 0:00:07]} Nc5 {[%emt 0:01:12]} 20. Qf3 {[%emt 0:03:58]} Na4 {[%emt 0:06:07]} 21. Nb3 {[%emt 0:06:23]} Nxc3+ {[%emt 0:02:49]} 22. Qxc3 {[%emt 0:00:04]} Rac8 {[%emt 0:04:40]} 23. Qg3 {[%emt 0:07:20]} Qc7 {[%emt 0:01:53]} 24. Qf2 {[%emt 0:03:51]} Rfd8 {[%emt 0:08:15]} 25. Rdg1 {[%emt 0:04:12]} 1/2-1/2